fUSD/lending_fUSD_20250510
["ID","MTS","AMOUNT","RATE_DAILY","PERIOD"]
[360527982,1746844248909,-362.03675319,0.00019966,2]
[360527983,1746844248918,-347.8429287,0.00019966,2]
[360527984,1746844248928,-400.0,0.00019966,2]
[360527985,1746844248937,-151.0,0.00019966,2]
[360527986,1746844248947,-159.203631,0.00019966,2]
[360527987,1746844248956,-400.0,0.00019966,2]
[360527988,1746844248965,-400.0,0.00019966,2]
[360527989,1746844248974,-201.30687162,0.00019966,2]
[360527990,1746844248984,-586.9,0.00019966,2]
[360527991,1746844248993,-400.0,0.00019966,2]
[360527992,1746844249002,-400.0,0.00019966,2]
[360527993,1746844249011,-151.0,0.00019966,2]
[360527994,1746844249022,-400.0,0.00019966,2]
[360527995,1746844249032,-272.921454,0.00019966,2]
[360527996,1746844249042,-400.0,0.00019966,2]
[360527997,1746844249052,-279.28828721,0.00019966,2]
[360527998,1746844249061,-400.0,0.00019966,2]
[360527999,1746844249070,-400.0,0.00019966,2]
[360528000,1746844249079,-532.17994201,0.00019966,2]
[360528001,1746844249089,-400.0,0.00019966,2]
[360528002,1746844249098,-400.0,0.00019966,2]
[360528003,1746844249107,-323.853434,0.00019966,2]
[360528004,1746844249116,-400.0,0.00019966,2]
[360528005,1746844249126,-400.0,0.00019966,2]
[360528006,1746844249136,-400.0,0.00019966,2]
[360528007,1746844249145,-400.0,0.00019966,2]
[360528008,1746844249154,-400.0,0.00019966,2]
[360528009,1746844249164,-530.32848097,0.00019966,2]
[360528010,1746844249173,-400.0,0.00019966,2]
[360528011,1746844249184,-400.0,0.00019966,2]
[360528012,1746844249195,-447.53637243,0.00019966,2]
[360528013,1746844249204,-400.0,0.00019966,2]
[360528014,1746844249215,-2107.97,0.00019966,2]
[360528015,1746844249224,-400.0,0.00019966,2]
[360528016,1746844249234,-400.0,0.00019966,2]
[360528017,1746844249244,-400.0,0.00019966,2]
[360528018,1746844249254,-400.0,0.00019966,2]
[360528019,1746844249263,-521.39987714,0.00019966,2]
[360528020,1746844249272,-400.0,0.00019966,2]
[360528021,1746844249282,-400.0,0.00019966,2]
[360528022,1746844249292,-400.0,0.00019966,2]
[360528023,1746844249302,-400.0,0.00019966,2]
[360528024,1746844249311,-400.0,0.00019966,2]
[360528025,1746844249321,-539.06524381,0.00019966,2]
[360528026,1746844249331,-400.0,0.00019966,2]
[360528027,1746844249340,-400.0,0.00019966,2]
[360528028,1746844249350,-400.0,0.00019966,2]
[360528029,1746844249360,-400.0,0.00019966,2]
[360528030,1746844249371,-400.0,0.00019966,2]
[360528031,1746844249381,-400.0,0.00019966,2]
[360528032,1746844249391,-400.0,0.00019966,2]
[360528033,1746844249404,-400.0,0.00019966,2]
[360528034,1746844249414,-28818.01,0.00019966,2]
[360528035,1746844249423,-151.0,0.00019966,2]
[360528036,1746844249434,-400.0,0.00019966,2]
[360528037,1746844249443,-151.0,0.00019966,2]
[360528038,1746844249453,-1203.53,0.00019966,2]
[360528039,1746844249462,-569.11979078,0.00019966,2]
[360528040,1746844249472,-776.92,0.00019966,2]
[360528041,1746844249482,-767.07,0.00019966,2]
[360528042,1746844249492,-1378.269386,0.00019966,2]
[360528043,1746844249501,-1378.269386,0.00019966,2]
[360528044,1746844249511,-1378.269386,0.00019966,2]
[360528045,1746844249521,-1378.269386,0.00019966,2]
[360528046,1746844249530,-400.0,0.00019966,2]
[360528047,1746844249540,-151.0,0.00019966,2]
[360528048,1746844249550,-151.0,0.00019966,2]
[360528049,1746844249561,-151.0,0.00019966,2]
[360528050,1746844249571,-400.0,0.00019966,2]
[360528051,1746844249580,-400.0,0.00019966,2]
[360528052,1746844249590,-400.0,0.00019966,2]
[360528053,1746844249599,-545.17238789,0.00019966,2]
[360528054,1746844249609,-400.0,0.00019966,2]
[360528055,1746844249619,-400.0,0.00019966,2]
[360528056,1746844249633,-850.19,0.00019966,2]
[360528057,1746844249643,-222.22484051,0.00019966,2]
[360528058,1746844249652,-400.0,0.00019966,2]
[360528059,1746844249662,-559.74,0.00019966,2]
[360528060,1746844249673,-400.0,0.00019966,2]
[360528061,1746844249683,-151.0,0.00019966,2]
[360528062,1746844249693,-151.0,0.00019966,2]
[360528063,1746844249704,-151.0,0.00019966,2]
[360528064,1746844249714,-476.78,0.00019966,2]
[360528065,1746844249724,-1385.77,0.00019966,2]
[360528066,1746844249734,-424.6474728,0.00019966,2]
[360528067,1746844249743,-524.87587635,0.00019966,2]
[360528068,1746844249753,-295.73899916,0.00019966,2]
[360528069,1746844249763,-400.0,0.00019966,2]
[360528070,1746844249772,-151.0,0.00019966,2]
[360528071,1746844249782,-151.0,0.00019966,2]
[360528072,1746844249792,-151.0,0.00019966,2]
[360528073,1746844249801,-429.32,0.00019966,2]
[360528074,1746844249811,-358.20078412,0.00019966,2]
[360528075,1746844249821,-400.0,0.00019966,2]
[360528076,1746844249831,-400.0,0.00019966,2]
[360528077,1746844249842,-1700.68,0.00019966,2]
[360528078,1746844249852,-304.58732222,0.00019966,2]
[360528079,1746844249862,-1267.65,0.00019966,2]
[360528080,1746844249872,-327.64016684,0.00019966,2]
[360528081,1746844249881,-505.36840632,0.00019966,2]
[360528082,1746844249892,-643.54,0.00019966,2]
[360528083,1746844249901,-400.0,0.00019966,2]
[360528084,1746844249911,-400.0,0.00019966,2]
[360528085,1746844249920,-400.0,0.00019966,2]
[360528086,1746844249929,-400.0,0.00019966,2]
[360528087,1746844249941,-400.0,0.00019966,2]
[360528088,1746844249951,-1302.36,0.00019966,2]
[360528089,1746844249961,-151.64493616,0.00019967,4]
[360528090,1746844249970,-173.237574,0.00019967,2]
[360528091,1746844249980,-500.0,0.00019967,2]
[360528092,1746844249990,-500.0,0.00019967,2]
[360528093,1746844250000,-150.0,0.00019968,2]
[360528094,1746844250011,-169.0,0.00019973,2]
[360528095,1746844250020,-169.62698688,0.00019973,2]
[360528096,1746844250030,-500.0,0.00019973,2]
[360528097,1746844250039,-502.01928571,0.00019973,2]
[360528098,1746844250049,-501.91737302,0.00019973,2]
[360528099,1746844250058,-502.27405274,0.00019973,2]
[360528100,1746844250068,-500.0,0.00019973,2]
[360528101,1746844250077,-500.64623888,0.00019973,2]
[360528102,1746844250086,-508.51447964,0.00019973,2]
[360528103,1746844250095,-500.0,0.00019973,2]
[360528104,1746844250105,-500.0,0.00019973,2]
[360528105,1746844250114,-500.43387931,0.00019973,2]
[360528106,1746844250123,-402.95288995,0.00019973,2]
[360528107,1746844250133,-500.0,0.00019973,2]
[360528108,1746844250142,-500.0,0.00019973,2]
[360528109,1746844250152,-481.30373157,0.00019973,2]
[360528110,1746844250161,-500.0,0.00019973,2]
[360528111,1746844250171,-500.0,0.00019973,2]
[360528112,1746844250181,-172.59932243,0.00019973,2]
[360528113,1746844250194,-501.13733265,0.00019973,2]
[360528114,1746844250204,-502.655626,0.00019973,2]
[360528115,1746844250213,-162.0,0.00019973,2]
[360528116,1746844250222,-500.0,0.00019973,2]
[360528117,1746844250232,-500.0,0.00019973,2]
[360528118,1746844250241,-1378.269386,0.00019973,2]
[360528119,1746844250250,-1378.269386,0.00019973,2]
[360528120,1746844250259,-1620.92,0.00019982,2]
[360528121,1746844250268,-783.08,0.00019982,2]
[360528122,1746844250277,-879.33,0.00019982,2]
[360528123,1746844250286,-503.01,0.00019982,2]
[360528124,1746844250295,-400.0,0.00019982,2]
[360528125,1746844250305,-400.0,0.00019982,2]
[360528126,1746844250314,-400.0,0.00019982,2]
[360528127,1746844250324,-560.91,0.00019982,2]
[360528128,1746844250334,-151.0,0.00019982,2]
[360528129,1746844250343,-3017.99,0.00019982,2]
[360528130,1746844250352,-400.0,0.00019982,2]
[360528131,1746844250362,-400.0,0.00019982,2]
[360528132,1746844250371,-400.0,0.00019982,2]
[360528133,1746844250380,-1378.269386,0.00019982,2]
[360528134,1746844250390,-1378.269386,0.00019982,2]
[360528135,1746844250399,-400.0,0.00019982,2]
[360528136,1746844250409,-400.0,0.00019982,2]
[360528137,1746844250418,-400.0,0.00019982,2]
[360528138,1746844250427,-238.39842575,0.00019982,2]
[360528139,1746844250438,-632.8,0.00019982,2]
[360528140,1746844250448,-400.0,0.00019982,2]
[360528141,1746844250457,-400.0,0.00019982,2]
[360528142,1746844250468,-400.0,0.00019982,2]
[360528143,1746844250477,-400.0,0.00019982,2]
[360528144,1746844250487,-400.0,0.00019982,2]
[360528145,1746844250496,-400.0,0.00019982,2]
[360528146,1746844250505,-400.0,0.00019982,2]
[360528147,1746844250514,-642.37,0.00019982,2]
[360528148,1746844250523,-594.19,0.00019982,2]
[360528149,1746844250532,-1396.27,0.00019982,2]
[360528150,1746844250542,-400.0,0.00019982,2]
[360528151,1746844250551,-400.0,0.00019982,2]
[360528152,1746844250560,-400.0,0.00019982,2]
[360528153,1746844250569,-695.37,0.00019982,2]
[360528154,1746844250578,-691.52,0.00019982,2]
[360528155,1746844250587,-400.0,0.00019982,2]
[360528156,1746844250596,-151.0,0.00019982,2]
[360528157,1746844250605,-465.41069247,0.00019982,2]
[360528158,1746844250614,-400.0,0.00019982,2]
[360528159,1746844250625,-400.0,0.00019982,2]
[360528160,1746844250644,-400.0,0.00019982,2]
[360528161,1746844250653,-400.0,0.00019982,2]
[360528162,1746844250662,-1915.78,0.00019982,2]
[360528163,1746844250671,-400.0,0.00019982,2]
[360528164,1746844250680,-407.26,0.00019982,2]
[360528165,1746844250690,-325.05358841,0.00019982,2]
[360528166,1746844250699,-433.58455788,0.00019982,2]
[360528167,1746844250709,-400.0,0.00019982,2]
[360528168,1746844250718,-400.0,0.00019982,2]
[360528169,1746844250729,-508.47,0.00019982,2]
[360528170,1746844250738,-310.00162901,0.00019983,2]
[360528171,1746844250747,-676.49175626,0.00019983,2]
[360528172,1746844250755,-310.8732834,0.00019983,2]
[360528173,1746844250764,-400.0,0.00019983,2]
[360528174,1746844250774,-400.0,0.00019983,2]
[360528175,1746844250783,-400.0,0.00019983,2]
[360528176,1746844250793,-400.0,0.00019983,2]
[360528177,1746844250943,-400.0,0.00019983,2]
[360528178,1746844250953,-400.0,0.00019983,2]
[360528179,1746844250963,-400.0,0.00019983,2]
[360528180,1746844250972,-400.0,0.00019983,2]
[360528181,1746844250981,-400.0,0.00019983,2]
[360528182,1746844250991,-400.0,0.00019983,2]
[360528183,1746844251000,-400.0,0.00019983,2]
[360528184,1746844251009,-400.0,0.00019983,2]
[360528185,1746844251018,-318.88096621,0.00019983,2]
[360528186,1746844251027,-400.0,0.00019983,2]
[360528187,1746844251036,-385.90499488,0.00019983,2]
[360528188,1746844251045,-400.0,0.00019983,2]
[360528189,1746844251054,-400.0,0.00019983,2]
[360528190,1746844251063,-230.5585919,0.00019983,2]
[360528191,1746844251073,-400.0,0.00019983,2]
[360528192,1746844251082,-400.0,0.00019983,2]
[360528193,1746844251091,-400.0,0.00019983,2]
[360528194,1746844251100,-400.0,0.00019983,2]
[360528195,1746844251109,-400.0,0.00019983,2]
[360528196,1746844251119,-400.0,0.00019983,2]
[360528197,1746844251128,-400.0,0.00019983,2]
[360528198,1746844251137,-400.0,0.00019983,2]
[360528199,1746844251146,-510.18392103,0.00019983,2]
[360528200,1746844251156,-400.0,0.00019983,2]
[360528201,1746844251166,-400.0,0.00019983,2]
[360528202,1746844251175,-400.0,0.00019983,2]
[360528203,1746844251184,-400.0,0.00019983,2]
[360528204,1746844251194,-400.0,0.00019983,2]
[360528205,1746844251203,-400.0,0.00019983,2]
[360528206,1746844251212,-250.0,0.00019983,2]
[360528207,1746844251222,-243.74402343,0.00019983,2]
[360528208,1746844251232,-400.0,0.00019983,2]
[360528209,1746844251241,-400.0,0.00019983,2]
[360528210,1746844251250,-400.0,0.00019983,2]
[360528211,1746844251259,-400.0,0.00019983,2]
[360528212,1746844251270,-400.0,0.00019983,2]
[360528213,1746844251279,-400.0,0.00019983,2]
[360528214,1746844251290,-400.0,0.00019983,2]
[360528215,1746844251300,-400.0,0.00019983,2]
[360528216,1746844251311,-400.0,0.00019983,2]
[360528217,1746844251320,-400.0,0.00019983,2]
[360528218,1746844251330,-400.0,0.00019983,2]
[360528219,1746844251341,-400.0,0.00019983,2]
[360528220,1746844251351,-400.0,0.00019983,2]
[360528221,1746844251361,-400.0,0.00019983,2]
[360528222,1746844251371,-400.0,0.00019983,2]
[360528223,1746844251380,-151.0,0.00019983,2]
[360528224,1746844251390,-462.98891149,0.00019983,2]
[360528225,1746844251400,-400.0,0.00019983,2]
[360528226,1746844251410,-400.0,0.00019983,2]
[360528227,1746844251419,-299.38350905,0.00019983,2]
[360528228,1746844251428,-400.0,0.00019983,2]
[360528229,1746844251438,-400.0,0.00019983,2]
[360528230,1746844251447,-335.82394488,0.00019983,2]
[360528231,1746844251456,-164.62502939,0.00019983,2]
[360528232,1746844251466,-400.0,0.00019983,2]
[360528233,1746844251476,-151.0,0.00019983,2]
[360528234,1746844251486,-301.48363811,0.00019983,2]
[360528235,1746844251497,-400.0,0.00019983,2]
[360528236,1746844251509,-156.25988323,0.00019983,2]
[360528237,1746844251518,-517.23008611,0.00019983,2]
[360528238,1746844251529,-400.0,0.00019983,2]
[360528239,1746844251538,-544.17756853,0.00019983,2]
[360528240,1746844251547,-400.0,0.00019983,2]
[360528241,1746844251557,-155.01687772,0.00019983,2]
[360528242,1746844251567,-400.0,0.00019983,2]
[360528243,1746844251577,-400.0,0.00019983,2]
[360528244,1746844251587,-400.0,0.00019983,2]
[360528245,1746844251596,-400.0,0.00019983,2]
[360528246,1746844251606,-400.0,0.00019983,2]
[360528247,1746844251615,-400.0,0.00019983,2]
[360528248,1746844251628,-400.0,0.00019983,2]
[360528249,1746844251638,-469.49,0.00019983,2]
[360528250,1746844251648,-530.50861982,0.00019983,2]
[360528251,1746844251657,-400.0,0.00019983,2]
[360528252,1746844251668,-400.0,0.00019983,2]
[360528253,1746844251677,-400.0,0.00019983,2]
[360528254,1746844251688,-400.0,0.00019983,2]
[360528255,1746844251698,-400.0,0.00019983,2]
[360528256,1746844251709,-400.0,0.00019983,2]
[360528257,1746844251720,-400.0,0.00019983,2]
[360528258,1746844251729,-400.0,0.00019983,2]
[360528259,1746844251739,-400.0,0.00019983,2]
[360528260,1746844251750,-151.0,0.00019983,2]
[360528261,1746844251759,-400.0,0.00019983,2]
[360528262,1746844251769,-400.0,0.00019983,2]
[360528263,1746844251778,-400.0,0.00019983,2]
[360528264,1746844251787,-480.45713867,0.00019983,2]
[360528265,1746844251797,-400.0,0.00019983,2]
[360528266,1746844251806,-500.0,0.00019983,2]
[360528267,1746844251815,-1378.269386,0.00019983,2]
[360528268,1746844251824,-496.38064266,0.00019983,2]
[360528269,1746844251834,-1378.269389,0.00019983,2]
[360528270,1746844251843,-400.0,0.00019983,2]
[360528271,1746844251852,-526.91904028,0.00019983,2]
[360528272,1746844251861,-400.0,0.00019983,2]
[360528273,1746844251871,-400.0,0.00019983,2]
[360528274,1746844251880,-400.0,0.00019983,2]
[360528275,1746844251890,-151.0,0.00019983,2]
[360528276,1746844251899,-400.0,0.00019983,2]
[360528277,1746844251909,-521.88,0.00019983,2]
[360528278,1746844251919,-400.0,0.00019983,2]
[360528279,1746844251929,-400.0,0.00019983,2]
[360528280,1746844251941,-400.0,0.00019983,2]
[360528281,1746844251950,-400.0,0.00019983,2]
[360528282,1746844251959,-400.0,0.00019983,2]
[360528283,1746844251969,-858.11,0.00019983,2]
[360528284,1746844251979,-749.6,0.00019983,2]
[360528285,1746844251989,-151.0,0.00019983,2]
[360528286,1746844251999,-400.0,0.00019983,2]
[360528287,1746844252009,-400.0,0.00019983,2]
[360528288,1746844252018,-400.0,0.00019983,2]
[360528289,1746844252028,-400.0,0.00019983,2]
[360528290,1746844252037,-643.42,0.00019983,2]
[360528291,1746844252046,-151.0,0.00019983,2]
[360528292,1746844252056,-400.0,0.00019983,2]
[360528293,1746844252065,-400.0,0.00019983,2]
[360528294,1746844252076,-400.0,0.00019983,2]
[360528295,1746844252087,-400.0,0.00019983,2]
[360528296,1746844252098,-419.51,0.00019983,2]
[360528297,1746844252108,-400.0,0.00019983,2]
[360528298,1746844252120,-400.0,0.00019983,2]
[360528299,1746844252132,-400.0,0.00019983,2]
[360528300,1746844252144,-400.0,0.00019983,2]
[360528301,1746844252155,-400.0,0.00019983,2]
[360528302,1746844252165,-503.59687382,0.00019983,2]
[360528303,1746844252175,-400.0,0.00019983,2]
[360528304,1746844252184,-400.0,0.00019983,2]
[360528305,1746844252194,-400.0,0.00019983,2]
[360528306,1746844252203,-170.42424837,0.00019983,2]
[360528307,1746844252212,-400.0,0.00019983,2]
[360528308,1746844252221,-516.92278898,0.00019983,2]
[360528309,1746844252231,-400.0,0.00019983,2]
[360528310,1746844252240,-3461.31,0.00019983,2]
[360528311,1746844252249,-400.0,0.00019983,2]
[360528312,1746844252258,-400.0,0.00019983,2]
[360528313,1746844252267,-400.0,0.00019983,2]
[360528314,1746844252276,-400.0,0.00019983,2]
[360528315,1746844252286,-400.0,0.00019983,2]
[360528316,1746844252295,-193.0711556,0.00019983,2]
[360528317,1746844252305,-298.1815879,0.00019983,2]
[360528318,1746844252314,-179.8251575,0.00019983,2]
[360528319,1746844252323,-374.92305808,0.00019983,2]
[360528320,1746844252333,-500.0,0.00019983,2]
[360528321,1746844252342,-266.36685338,0.00019983,2]
[360528322,1746844252351,-431.79212658,0.00019983,2]
[360528323,1746844252361,-500.0,0.00019983,2]
[360528324,1746844252370,-500.0,0.00019983,2]
[360528325,1746844252380,-500.0,0.00019983,2]
[360528326,1746844252390,-417.59599591,0.00019983,2]
[360528327,1746844252399,-500.0,0.00019983,2]
[360528328,1746844252408,-500.0,0.00019983,2]
[360528329,1746844252418,-500.0,0.00019983,2]
[360528330,1746844252427,-500.0,0.00019983,2]
[360528331,1746844252436,-500.0,0.00019983,2]
[360528332,1746844252446,-500.0,0.00019983,2]
[360528333,1746844252455,-250.0,0.00019983,2]
[360528334,1746844252464,-400.0,0.00019984,2]
[360528335,1746844252473,-400.0,0.00019984,2]
[360528336,1746844252483,-400.0,0.00019984,2]
[360528337,1746844252491,-400.0,0.00019984,2]
[360528338,1746844252501,-400.0,0.00019984,2]
[360528339,1746844252511,-400.0,0.00019984,2]
[360528340,1746844252520,-400.0,0.00019984,2]
[360528341,1746844252530,-400.0,0.00019984,2]
[360528342,1746844252540,-400.0,0.00019984,2]
[360528343,1746844252549,-400.0,0.00019984,2]
[360528344,1746844252559,-400.0,0.00019984,2]
[360528345,1746844252568,-400.0,0.00019984,2]
[360528346,1746844252578,-400.0,0.00019984,2]
[360528347,1746844252588,-400.0,0.00019984,2]
[360528348,1746844252598,-400.0,0.00019984,2]
[360528349,1746844252607,-400.0,0.00019984,2]
[360528350,1746844252617,-400.0,0.00019984,2]
[360528351,1746844252631,-400.0,0.00019984,2]
[360528352,1746844252640,-153.05877687,0.00019984,2]
[360528353,1746844252650,-400.0,0.00019984,2]
[360528354,1746844252659,-400.0,0.00019984,2]
[360528355,1746844252670,-221.44618158,0.00019984,2]
[360528356,1746844252679,-400.0,0.00019984,2]
[360528357,1746844252689,-400.0,0.00019984,2]
[360528358,1746844252701,-400.0,0.00019984,2]
[360528359,1746844252710,-400.0,0.00019984,2]
[360528360,1746844252720,-400.0,0.00019984,2]
[360528361,1746844252730,-400.0,0.00019984,2]
[360528362,1746844252740,-400.0,0.00019984,2]
[360528363,1746844252749,-250.0,0.00019984,2]
[360528364,1746844252759,-400.0,0.00019984,2]
[360528365,1746844252769,-400.0,0.00019984,2]
[360528366,1746844252779,-400.0,0.00019984,2]
[360528367,1746844252789,-400.0,0.00019984,2]
[360528368,1746844252798,-400.0,0.00019984,2]
[360528369,1746844252808,-400.0,0.00019984,2]
[360528370,1746844252818,-400.0,0.00019984,2]
[360528371,1746844252827,-400.0,0.00019984,2]
[360528372,1746844252837,-400.0,0.00019984,2]
[360528373,1746844252846,-400.0,0.00019984,2]
[360528374,1746844252857,-400.0,0.00019984,2]
[360528375,1746844252866,-400.0,0.00019984,2]
[360528376,1746844252876,-400.0,0.00019984,2]
[360528377,1746844252886,-400.0,0.00019984,2]
[360528378,1746844252896,-400.0,0.00019984,2]
[360528379,1746844252906,-151.0,0.00019984,2]
[360528380,1746844252916,-151.0,0.00019984,2]
[360528381,1746844252926,-400.0,0.00019984,2]
[360528382,1746844252936,-168.02572743,0.00019984,2]
[360528383,1746844252946,-400.0,0.00019984,2]
[360528384,1746844252955,-400.0,0.00019984,2]
[360528385,1746844252966,-400.0,0.00019984,2]
[360528386,1746844252975,-158.5997521,0.00019984,2]
[360528387,1746844252984,-423.50550473,0.00019984,2]
[360528388,1746844252994,-400.0,0.00019984,2]
[360528389,1746844253004,-400.0,0.00019984,2]
[360528390,1746844253013,-300.73377624,0.00019984,2]
[360528391,1746844253023,-400.0,0.00019984,2]
[360528392,1746844253033,-400.0,0.00019984,2]
[360528393,1746844253043,-1162.68,0.00019984,2]
[360528394,1746844253052,-1162.68,0.00019984,2]
[360528395,1746844253062,-400.0,0.00019984,2]
[360528396,1746844253071,-400.0,0.00019984,2]
[360528397,1746844253081,-400.0,0.00019984,2]
[360528398,1746844253091,-400.0,0.00019984,2]
[360528399,1746844253100,-400.0,0.00019984,2]
[360528400,1746844253109,-400.0,0.00019984,2]
[360528401,1746844253119,-176.04107788,0.00019984,2]
[360528402,1746844253129,-151.0,0.00019984,2]
[360528403,1746844253138,-151.0,0.00019984,2]
[360528404,1746844253148,-400.0,0.00019984,2]
[360528405,1746844253158,-400.0,0.00019984,2]
[360528406,1746844253168,-151.0,0.00019984,2]
[360528407,1746844253178,-400.0,0.00019984,2]
[360528408,1746844253187,-400.0,0.00019984,2]
[360528409,1746844253196,-400.0,0.00019984,2]
[360528410,1746844253206,-400.0,0.00019984,2]
[360528411,1746844253216,-197.00822689,0.00019984,2]
[360528412,1746844253226,-400.0,0.00019984,2]
[360528413,1746844253235,-400.0,0.00019984,2]
[360528414,1746844253245,-400.0,0.00019984,2]
[360528415,1746844253254,-450.45251007,0.00019984,2]
[360528416,1746844253264,-170.77932792,0.00019984,2]
[360528417,1746844253274,-400.0,0.00019984,2]
[360528418,1746844253283,-400.0,0.00019984,2]
[360528419,1746844253292,-400.0,0.00019984,2]
[360528420,1746844253301,-253.27158097,0.00019984,2]
[360528421,1746844253311,-400.0,0.00019984,2]
[360528422,1746844253321,-400.0,0.00019984,2]
[360528423,1746844253331,-400.0,0.00019984,2]
[360528424,1746844253340,-400.0,0.00019984,2]
[360528425,1746844253388,-406.89181558,0.00019984,2]
[360528426,1746844253398,-400.0,0.00019984,2]
[360528427,1746844253407,-386.23835106,0.00019984,2]
[360528428,1746844253417,-400.0,0.00019984,2]
[360528429,1746844253426,-400.0,0.00019984,2]
[360528430,1746844253435,-286.27245619,0.00019984,2]
[360528431,1746844253445,-510.50113739,0.00019984,2]
[360528432,1746844253455,-400.0,0.00019984,2]
[360528433,1746844253464,-400.0,0.00019984,2]
[360528434,1746844253473,-400.0,0.00019984,2]
[360528435,1746844253483,-400.0,0.00019984,2]
[360528436,1746844253493,-400.0,0.00019984,2]
[360528437,1746844253503,-400.0,0.00019984,2]
[360528438,1746844253512,-400.0,0.00019984,2]
[360528439,1746844253522,-400.0,0.00019984,2]
[360528440,1746844253531,-400.0,0.00019984,2]
[360528441,1746844253541,-400.0,0.00019984,2]
[360528442,1746844253550,-400.0,0.00019984,2]
[360528443,1746844253559,-400.0,0.00019984,2]
[360528444,1746844253568,-400.0,0.00019984,2]
[360528445,1746844253578,-400.0,0.00019984,2]
[360528446,1746844253587,-400.0,0.00019984,2]
[360528447,1746844253596,-400.0,0.00019984,2]
[360528448,1746844253606,-400.0,0.00019984,2]
[360528449,1746844253616,-400.0,0.00019984,2]
[360528450,1746844253629,-163.86691872,0.00019984,2]
[360528451,1746844253644,-400.0,0.00019984,2]
[360528452,1746844253654,-233.38612496,0.00019984,2]
[360528453,1746844253663,-177.70859987,0.00019984,2]
[360528454,1746844253673,-400.0,0.00019984,2]
[360528455,1746844253683,-400.0,0.00019984,2]
[360528456,1746844253692,-166.89050271,0.00019984,2]
[360528457,1746844253702,-183.87213854,0.00019984,2]
[360528458,1746844253712,-400.0,0.00019984,2]
[360528459,1746844253722,-212.84895773,0.00019984,2]
[360528460,1746844253731,-400.0,0.00019984,2]
[360528461,1746844253741,-328.91198207,0.00019984,2]
[360528462,1746844253750,-400.0,0.00019984,2]
[360528463,1746844253759,-400.0,0.00019984,2]
[360528464,1746844253770,-400.0,0.00019984,2]
[360528465,1746844253780,-227.378496,0.00019984,2]
[360528466,1746844253789,-151.0,0.00019984,2]
[360528467,1746844253799,-151.0,0.00019984,2]
[360528468,1746844253808,-586.9,0.00019984,2]
[360528469,1746844253817,-199.2101071,0.00019984,2]
[360528470,1746844253827,-504.63373369,0.00019984,2]
[360528471,1746844253837,-267.1990669,0.00019984,2]
[360528472,1746844253846,-400.0,0.00019984,2]
[360528473,1746844253856,-400.0,0.00019984,2]
[360528474,1746844253865,-400.0,0.00019984,2]
[360528475,1746844253875,-400.0,0.00019984,2]
[360528476,1746844253885,-400.0,0.00019984,2]
[360528477,1746844253894,-434.75874393,0.00019984,2]
[360528478,1746844253904,-400.0,0.00019984,2]
[360528479,1746844253914,-400.0,0.00019984,2]
[360528480,1746844253924,-459.0090556,0.00019984,2]
[360528481,1746844253934,-400.0,0.00019984,2]